Workbook

Sheet ESTIMATE
C1: PROJECT: A NEW SINGLE FAMILY HOME | N1: Web: http://sigmaestimations.com Email: info@sigmaestimations.com
C3: LOCATION: 1318 MOKULUA DRIVE, KAILUA, HAWAII 96734
A5: ITEM # | B5: DWG # | C5: CSI #/SUB DETAIL | D5: DESCRIPTION | E5: QTY. | F5: WASTE | G5: QTY. W/ WASTE | H5: UNIT | I5: UNIT LABOR HOURS | J5: TOTAL LABOR HOURS | K5: PER HOUR LABOR RATE | L5: TOTAL LABOR COST | M5: UNIT MATERIAL COST | N5: TOTAL MATERIAL COST | O5: ITEM COST | P5: TRADE COST
C6: 010000 | D6: DIVISION 01 — GENERAL REQUIREMENTS
A7: =IF(H7<>"",1+MAX(A1:A6),"") -> 1 | D7: Submittal Procedures | E7: 1 | F7: 0% | G7: =E7+(E7*F7) -> 1 | H7: LS | I7: 0.00 | J7: =I7*G7 -> 0.00 | K7: 0 | L7: =K7*J7 -> 0 | M7: 0 | N7: =M7*G7 -> 0 | O7: =L7+N7 -> 0
A8: =IF(H8<>"",1+MAX(A2:A7),"") -> 2 | D8: Temporary Facilities and Controls | E8: 1 | F8: 0% | G8: 1 | H8: LS | I8: 0.00 | J8: 0.00 | K8: 0 | L8: 0 | M8: 0 | N8: 0 | O8: 0
A9: 3 | D9: Closeout Procedures | E9: 1 | F9: 0% | G9: 1 | H9: LS | I9: 0.00 | J9: 0.00 | K9: 0 | L9: 0 | M9: 0 | N9: 0 | O9: 0
A10: 4 | D10: Payment Procedures | E10: 1 | F10: 0% | G10: 1 | H10: LS | I10: 0.00 | J10: 0.00 | K10: 0 | L10: 0 | M10: 0 | N10: 0 | O10: 0
A11: 5 | D11: Contract Modification Procedures | E11: 1 | F11: 0% | G11: 1 | H11: LS | I11: 0.00 | J11: 0.00 | K11: 0 | L11: 0 | M11: 0 | N11: 0 | O11: 0
A12: 6 | D12: Maintenance & Traffic Protection | E12: 1 | F12: 0% | G12: 1 | H12: LS | I12: 0.00 | J12: 0.00 | K12: 0 | L12: 0 | M12: 0 | N12: 0 | O12: 0
D13: SUBTOTAL | L13: =IF(H13<>"",0.4*N13,"") ->  | M13: =IF(H13<>"",N13-L13,"") ->  | P13: =SUM(O7:O12) -> 0
C14: 060000 | D14: DIVISION 06 — WOOD, PLASTICS & COMPOSITES | L14: =IF(H14<>"",0.4*N14,"") ->  | M14: =IF(H14<>"",N14-L14,"") -> 
D16: WALL FRAMING
A17: =IF(H17<>"",1+MAX(A5:A16),"") -> 
A18: =IF(H18<>"",1+MAX(A6:A17),"") ->  | D18: (2x6) Interior Partition Wall:
A19: =IF(H19<>"",1+MAX(A7:A18),"") -> 7 | B19: A102-105 | C19: A102-105 | D19: (2X6) Wood Studs @ 16" O.C. | E19: =(246*10+58.5*9+26*18.2+48.5*9)/1.2 -> 3247 | F19: 5% | G19: =E19+(E19*F19) -> 3409 | H19: LF | I19: 0.021 | J19: =I19*G19 -> 71.59 | K19: $78.45 | L19: =K19*J19 -> $5,616.45 | M19: $1.96 | N19: =M19*G19 -> $6,681.98 | O19: =L19+N19 -> $12,298
A20: =IF(H20<>"",1+MAX(A8:A19),"") -> 8 | B20: A102-105 | C20: A102-105 | D20: (2X6) Top Double Wood Stud | E20: =2*380 -> 760 | F20: 5% | G20: 798 | H20: LF | I20: 0.021 | J20: 16.76 | K20: $78.45 | L20: $1,314.67 | M20: $1.96 | N20: $1,564.08 | O20: $2,879
A21: 9 | B21: A102-105 | C21: A102-105 | D21: (2X6) Bottom Single Wood Stud | E21: 380 | F21: 5% | G21: =E21+(E21*F21) -> 399 | H21: LF | I21: 0.021 | J21: 8.38 | K21: $78.45 | L21: $657.33 | M21: $1.96 | N21: $782.04 | O21: $1,439
D23: (2x4) Interior Partition Wall:
A24: 10 | B24: A102-105 | C24: A102-105 | D24: (2X4) Wood Studs @ 16" O.C. | E24: =(45*10+8.2*9)/1.2 -> 437 | F24: 5% | G24: =E24+(E24*F24) -> 458 | H24: LF | I24: 0.020 | J24: =I24*G24 -> 8.94 | K24: $78.45 | L24: =K24*J24 -> $701.13 | M24: $1.82 | N24: =M24*G24 -> $834.15 | O24: =L24+N24 -> $1,535
A25: 11 | B25: A102-105 | C25: A102-105 | D25: (2X4) Top Double Wood Stud | E25: =2*53 -> 106 | F25: 5% | G25: 111 | H25: LF | I25: 0.020 | J25: 2.17 | K25: $78.45 | L25: $170.26 | M25: $1.82 | N25: $202.57 | O25: $373
A26: 12 | B26: A102-105 | C26: A102-105 | D26: (2X4) Bottom Single Wood Stud | E26: 53 | F26: 5% | G26: 56 | H26: LF | I26: 0.020 | J26: 1.09 | K26: $78.45 | L26: $85.13 | M26: $1.82 | N26: $101.28 | O26: $186
D28: (2x6) Exterior Furring Wall:
A29: 13 | B29: A102-105 | C29: A102-105 | D29: (2X6) Wood Studs @ 16" O.C. | E29: =(370*10+78*12+46*18+255*9) -> 7759 | F29: 5% | G29: =E29+(E29*F29) -> 8147 | H29: LF | I29: 0.021 | J29: =I29*G29 -> 171.09 | K29: $78.45 | L29: =K29*J29 -> $13,421.69 | M29: $1.96 | N29: =M29*G29 -> $15,968.02 | O29: =L29+N29 -> $29,390
A30: 14 | B30: A102-105 | C30: A102-105 | D30: (2X6) Top Double Wood Stud | E30: =2*751 -> 1502 | F30: 5% | G30: 1577 | H30: LF | I30: 0.021 | J30: 33.12 | K30: $78.45 | L30: $2,598.19 | M30: $1.96 | N30: $3,091.12 | O30: $5,689
A31: 15 | B31: A102-105 | C31: A102-105 | D31: (2X6) Bottom Single Wood Stud | E31: 751 | F31: 5% | G31: 789 | H31: LF | I31: 0.021 | J31: 16.56 | K31: $78.45 | L31: $1,299.10 | M31: $1.96 | N31: $1,545.56 | O31: $2,845
D33: WOODEN POSTS
A34: 16 | B34: S202, S205 | C34: S202, S205 | D34: (6X6, 9'6"H) Wooden Post | E34: 30 | F34: 0% | G34: =E34+(E34*F34) -> 30 | H34: EA | I34: 0.606 | J34: =I34*G34 -> 18.17 | K34: $78.45 | L34: =K34*J34 -> $1,425.34 | M34: $56.53 | N34: =M34*G34 -> $1,695.75 | O34: =L34+N34 -> $3,121
A35: 17 | B35: S205 | C35: S205 | D35: (6X6, 3'8"H) Wooden Post | E35: 6 | F35: 0% | G35: =E35+(E35*F35) -> 6 | H35: EA | I35: 0.234 | J35: 1.40 | K35: $78.45 | L35: $110.13 | M35: $21.84 | N35: $131.02 | O35: $241
A36: 18 | B36: S202, S205 | C36: S202, S205 | D36: (4X6, 9'6"H) Wooden Post | E36: 3 | F36: 0% | G36: 3 | H36: EA | I36: 0.371 | J36: 1.11 | K36: $78.45 | L36: $87.20 | M36: $34.58 | N36: $103.74 | O36: $191
D38: HOLDOWNS/ MISC. HARDWARE
A39: 19 | B39: S202 | C39: See legend note | D39: Holdown By Simpson (Hd-1) | E39: 8 | F39: 0% | G39: =E39+(E39*F39) -> 8 | H39: EA | I39: 0.361 | J39: =I39*G39 -> 2.89 | K39: $78.45 | L39: =K39*J39 -> $226.52 | M39: $33.69 | N39: =M39*G39 -> $269.50 | O39: =L39+N39 -> $496
A40: 20 | B40: S202 | C40: See legend note | D40: HTT4 Shear Wall Holdown w/ (5/8"Dia.) Embed. (Hd-2) - Lag Screw Into Beam & Double Stud Boundary Post | E40: 17 | F40: 0% | G40: 17 | H40: EA | I40: 0.631 | J40: 10.72 | K40: $78.45 | L40: $841.34 | M40: $58.88 | N40: $1,000.96 | O40: $1,842
A41: 21 | B41: S202, S205 | C41: See legend note | D41: HTT4 Shear Wall Holdown w/ (5/8"Dia.) Embed. (Hd) - Threaded Rod Drill/ Epoxied & Double Stud Boundary Post | E41: 63 | F41: 0% | G41: 63 | H41: EA | I41: 0.631 | J41: 39.74 | K41: $78.45 | L41: $3,117.92 | M41: $58.88 | N41: $3,709.44 | O41: $6,827
A43: 22 | B43: S202 | C43: See connector schedule | D43: "CCQM" Column Cap | E43: 4 | F43: 0% | G43: =E43+(E43*F43) -> 4 | H43: EA | I43: 1.794 | J43: =I43*G43 -> 7.18 | K43: $78.45 | L43: =K43*J43 -> $562.88 | M43: $287.00 | N43: =M43*G43 -> $1,148.00 | O43: =L43+N43 -> $1,711
A44: 23 | B44: S202 | C44: See connector schedule | D44: "HGUM" Beam Hanger | E44: 6 | F44: 0% | G44: =E44+(E44*F44) -> 6 | H44: EA | I44: 0.984 | J44: 5.91 | K44: $78.45 | L44: $463.37 | M44: $91.88 | N44: $551.28 | O44: $1,015
A45: 24 | B45: S202 | C45: See connector schedule | D45: "HGUM" Beam Hanger/ One Flange Concealed | E45: 3 | F45: 0% | G45: =E45+(E45*F45) -> 3 | H45: EA | I45: 0.984 | J45: 2.95 | K45: $78.45 | L45: $231.69 | M45: $91.88 | N45: $275.64 | O45: $507
A46: 25 | B46: S202-203, S205 | C46: See connector schedule | D46: "HGU" Beam Hanger | E46: 9 | F46: 0% | G46: =E46+(E46*F46) -> 9 | H46: EA | I46: 0.720 | J46: 6.48 | K46: $78.45 | L46: $508.51 | M46: $67.22 | N46: $604.98 | O46: $1,113
A47: 26 | B47: S202 | C47: See connector schedule | D47: "CCTQM" Column Cap | E47: 2 | F47: 0% | G47: 2 | H47: EA | I47: 1.794 | J47: 3.59 | K47: $78.45 | L47: $281.44 | M47: $287.00 | N47: $574.00 | O47: $855
A48: 27 | B48: S203 | C48: See connector schedule | D48: "CCQ" Column Cap | E48: 6 | F48: 0% | G48: 6 | H48: EA | I48: 1.408 | J48: 8.45 | K48: $78.45 | L48: $662.90 | M48: $169.00 | N48: $1,014.00 | O48: $1,677
A49: 28 | B49: S203, S205 | C49: See connector schedule | D49: "ECCQ" Or "ECCLQ" Column Cap | E49: 20 | F49: 0% | G49: =E49+(E49*F49) -> 20 | H49: EA | I49: 1.375 | J49: 27.49 | K49: $78.45 | L49: $2,156.81 | M49: $128.30 | N49: $2,566.00 | O49: $4,723
A50: 29 | B50: S203, S205 | C50: See connector schedule | D50: "HUCQ" Beam Hanger | E50: 11 | F50: 0% | G50: =E50+(E50*F50) -> 11 | H50: EA | I50: 0.672 | J50: 7.39 | K50: $78.45 | L50: $579.53 | M50: $62.68 | N50: $689.48 | O50: $1,269
A51: 30 | B51: S203 | C51: See connector schedule | D51: "HU" Beam Hanger Sloped & Screwed | E51: 1 | F51: 0% | G51: =E51+(E51*F51) -> 1 | H51: EA | I51: 0.770 | J51: 0.77 | K51: $78.45 | L51: $60.43 | M51: $71.90 | N51: $71.90 | O51: $132
A52: 31 | B52: S203 | C52: See connector schedule | D52: "DTT2Z" Tie Tension Each Side | E52: 2 | F52: 0% | G52: =E52+(E52*F52) -> 2 | H52: EA | I52: 0.288 | J52: 0.58 | K52: $78.45 | L52: $45.19 | M52: $26.88 | N52: $53.76 | O52: $99
A53: 32 | B53: S203, S205 | C53: See connector schedule | D53: "MSTC40" Drag Strut Strap Nailed To Top Of Beam & Wall Plate | E53: 3 | F53: 0% | G53: =E53+(E53*F53) -> 3 | H53: EA | I53: 0.181 | J53: 0.54 | K53: $78.45 | L53: $42.56 | M53: $16.88 | N53: $50.64 | O53: $93
A54: 33 | B54: S205 | C54: 9A/S409 | D54: St. Steel "CBSQ" Or Similar Post Base Embed. In Wall | E54: 6 | F54: 0% | G54: =E54+(E54*F54) -> 6 | H54: EA | I54: 0.537 | J54: 3.22 | K54: $78.45 | L54: $252.65 | M54: $85.88 | N54: $515.28 | O54: $768
A55: 34 | B55: S205 | C55: 9A/S409 | D55: Stepped Wooden Column Capital | E55: 6 | F55: 0% | G55: =E55+(E55*F55) -> 6 | H55: EA | I55: 1.133 | J55: 6.80 | K55: $78.45 | L55: $533.36 | M55: $181.30 | N55: $1,087.80 | O55: $1,621
A56: 35 | B56: S203-205 | C56: S203-205 | D56: "HGA10" Shear Transfer Clips @ 48" O.C. | E56: 75 | F56: 0% | G56: =E56+(E56*F56) -> 75 | H56: EA | I56: 0.263 | J56: 19.69 | K56: $78.45 | L56: $1,544.48 | M56: $24.50 | N56: $1,837.50 | O56: $3,382
D58: WOODEN BEAMS/ HEADERS
A59: 36 | B59: S201 | C59: S201 | D59: (2X12) LSL Ledger w/ (3/4"Dia. X 4") Embed. Titen HD Anchors Or Epoxied Threaded Rods @ 32" O.C. | E59: 395 | F59: 5% | G59: =E59+(E59*F59) -> 415 | H59: LF | I59: 0.027 | J59: =I59*G59 -> 11.20 | K59: $78.45 | L59: =K59*J59 -> $878.50 | M59: $2.52 | N59: =M59*G59 -> $1,045.17 | O59: =L59+N59 -> $1,924
A60: 37 | B60: S201 | C60: S201 | D60: (3X10) LSL Ledger w/ (3/4"Dia. X 4") Embed. Titen HD Anchors Or Epoxied Threaded Rods @ 32" O.C. | E60: 150 | F60: 5% | G60: =E60+(E60*F60) -> 158 | H60: LF | I60: 0.034 | J60: 5.32 | K60: $78.45 | L60: $417.01 | M60: $3.15 | N60: $496.13 | O60: $913
A61: 38 | B61: S202-203, S205 | C61: S202-203, S205 | D61: (5-1/2X12) Glue-Lam Beam | E61: 320 | F61: 5% | G61: 336 | H61: LF | I61: 0.124 | J61: 41.58 | K61: $78.45 | L61: $3,261.95 | M61: $11.55 | N61: $3,880.80 | O61: $7,143
A62: 39 | B62: S203 | C62: S203 | D62: (5-1/2X15) Glue-Lam Beam | E62: 116 | F62: 5% | G62: 122 | H62: LF | I62: 0.146 | J62: 17.81 | K62: $78.45 | L62: $1,397.45 | M62: $13.65 | N62: $1,662.57 | O62: $3,060
A63: 40 | B63: S203 | C63: S203 | D63: (5-1/2X13-1/2) Glue-Lam Beam | E63: 63 | F63: 5% | G63: 66 | H63: LF | I63: 0.134 | J63: 8.86 | K63: $78.45 | L63: $694.74 | M63: $12.50 | N63: $826.54 | O63: $1,521
A64: 41 | B64: S203 | C64: S203 | D64: (5-1/2X16-1/2) Glue-Lam Beam | E64: 52 | F64: 5% | G64: 55 | H64: LF | I64: 0.159 | J64: 8.70 | K64: $78.45 | L64: $682.66 | M64: $14.88 | N64: $812.18 | O64: $1,495
A65: 42 | B65: S203 | C65: S203 | D65: (5-1/2X10-1/2) Glue-Lam Beam | E65: 26 | F65: 5% | G65: 27 | H65: LF | I65: 0.119 | J65: 3.25 | K65: $78.45 | L65: $254.59 | M65: $11.10 | N65: $302.89 | O65: $557
A66: 43 | B66: S203 | C66: S203 | D66: (6X10) Ridge Beam | E66: 27 | F66: 5% | G66: 28 | H66: LF | I66: 0.071 | J66: 2.02 | K66: $78.45 | L66: $158.46 | M66: $6.65 | N66: $188.53 | O66: $347
A67: 44 | B67: S205 | C67: S205 | D67: (6X10) Trellis Beam | E67: 40 | F67: 5% | G67: =E67+(E67*F67) -> 42 | H67: LF | I67: 0.071 | J67: 2.99 | K67: $78.45 | L67: $234.76 | M67: $6.65 | N67: $279.30 | O67: $514
A68: 45 | B68: S203 | C68: S203 | D68: (6X12) Header Beam | E68: 96 | F68: 5% | G68: 101 | H68: LF | I68: 0.079 | J68: 7.94 | K68: $78.45 | L68: $622.74 | M68: $7.35 | N68: $740.88 | O68: $1,364
A69: 46 | B69: S203-204 | C69: S203-204 | D69: (6X10) Header Beam | E69: 42 | F69: 5% | G69: 44 | H69: LF | I69: 0.075 | J69: 3.31 | K69: $78.45 | L69: $259.47 | M69: $7.00 | N69: $308.70 | O69: $568
A70: 47 | B70: S203, S205 | C70: S203, S205 | D70: (6X8) Header Beam | E70: 31 | F70: 5% | G70: 33 | H70: LF | I70: 0.068 | J70: 2.20 | K70: $78.45 | L70: $172.36 | M70: $6.30 | N70: $205.07 | O70: $377
A71: 48 | B71: S203 | C71: S203 | D71: (6X6) Header Beam | E71: 35 | F71: 5% | G71: =E71+(E71*F71) -> 37 | H71: LF | I71: 0.064 | J71: 2.34 | K71: $78.45 | L71: $183.79 | M71: $5.95 | N71: $218.66 | O71: $402
A72: 49 | B72: S203-205 | C72: S203-205 | D72: (6X4) Header Beam | E72: 88 | F72: 5% | G72: =E72+(E72*F72) -> 92 | H72: LF | I72: 0.060 | J72: 5.54 | K72: $78.45 | L72: $434.93 | M72: $5.60 | N72: $517.44 | O72: $952
A73: 50 | B73: S203, S205 | C73: 5/S405, 8/S408 | D73: (2X12) Blocking @ 24" O.C. | E73: 180 | F73: 5% | G73: =E73+(E73*F73) -> 189 | H73: LF | I73: 0.026 | J73: 4.82 | K73: $78.45 | L73: $378.09 | M73: $2.38 | N73: $449.82 | O73: $828
A74: 51 | B74: S203, S205 | C74: 5/S405, 8/S408 | D74: (2X8) Blocking @ High & Low Roof Eaves | E74: =180+215 -> 395 | F74: 5% | G74: =E74+(E74*F74) -> 415 | H74: LF | I74: 0.023 | J74: 9.33 | K74: $78.45 | L74: $732.09 | M74: $2.10 | N74: $870.98 | O74: $1,603
A75: 52 | B75: S203, S205 | C75: 5/S405, 8/S408 | D75: (2X12) Rim @ Low Roof Eave | E75: 190 | F75: 5% | G75: =E75+(E75*F75) -> 200 | H75: LF | I75: 0.026 | J75: 5.09 | K75: $78.45 | L75: $399.09 | M75: $2.38 | N75: $474.81 | O75: $874
A76: 53 | B76: S203-205 | C76: S404-410 | D76: (2X6) Blocking Over Header Beams | E76: 292 | F76: 5% | G76: =E76+(E76*F76) -> 307 | H76: LF | I76: 0.021 | J76: 6.44 | K76: $78.45 | L76: $505.11 | M76: $1.96 | N76: $600.94 | O76: $1,106
A77: 54 | B77: S203 | C77: 2/S402 | D77: (2X6) Ledger @ Gable Truss | E77: 53 | F77: 5% | G77: =E77+(E77*F77) -> 56 | H77: LF | I77: 0.021 | J77: 1.17 | K77: $78.45 | L77: $91.68 | M77: $1.96 | N77: $109.07 | O77: $201
D79: JOISTS/ RAFTERS/ TRUSSES
A80: 55 | B80: S202 | C80: S202 | D80: (11-7/8") TJI360 Floor joists @ 16" O.C. | E80: 3230 | F80: 5% | G80: =E80+(E80*F80) -> 3392 | H80: LF | I80: 0.094 | J80: =I80*G80 -> 317.95 | K80: $78.45 | L80: =K80*J80 -> $24,943.42 | M80: $8.75 | N80: =M80*G80 -> $29,675.63 | O80: =L80+N80 -> $54,619
A82: 56 | B82: S203 | C82: S203 | D82: (2x8) Ceiling Joists @ 24" O.C. | E82: 78 | F82: 5% | G82: =E82+(E82*F82) -> 82 | H82: LF | I82: 0.023 | J82: =I82*G82 -> 1.84 | K82: $78.45 | L82: =K82*J82 -> $144.56 | M82: $2.10 | N82: =M82*G82 -> $171.99 | O82: =L82+N82 -> $317
A84: =IF(H84<>"",1+MAX(A72:A83),"") -> 57 | B84: S202 | C84: S202 | D84: (4x10) D.F. #1 Roof Joists @ 24" O.C. | E84: 355 | F84: 5% | G84: =E84+(E84*F84) -> 373 | H84: LF | I84: 0.045 | J84: =I84*G84 -> 16.77 | K84: $78.45 | L84: =K84*J84 -> $1,315.90 | M84: $4.20 | N84: =M84*G84 -> $1,565.55 | O84: =L84+N84 -> $2,881
A85: 58 | B85: S203 | C85: S203 | D85: (2x8) Eave Joists @ 24" O.C. | E85: 2720 | F85: 5% | G85: =E85+(E85*F85) -> 2856 | H85: LF | I85: 0.023 | J85: 64.26 | K85: $78.45 | L85: $5,041.20 | M85: $2.10 | N85: $5,997.60 | O85: $11,039
A87: 59 | B87: S203-205 | C87: S203-205 | D87: Pre-Engineered Manufactured Trusses @ 24" O.C. | E87: 1480 | F87: 5% | G87: 1554 | H87: LF | I87: 0.109 | J87: =I87*G87 -> 169.00 | K87: $78.45 | L87: =K87*J87 -> $13,257.85 | M87: $10.15 | N87: =M87*G87 -> $15,773.10 | O87: =L87+N87 -> $29,031
A88: 60 | B88: S204-205 | C88: S204-205 | D88: Hip Truss | E88: 164 | F88: 5% | G88: =E88+(E88*F88) -> 172 | H88: LF | I88: 0.095 | J88: 16.34 | K88: $78.45 | L88: $1,281.67 | M88: $8.86 | N88: $1,524.83 | O88: $2,807
A89: 61 | B89: S204-205 | C89: 5/S405 | D89: Girder Truss | E89: 143 | F89: 5% | G89: =E89+(E89*F89) -> 150 | H89: LF | I89: 0.111 | J89: 16.61 | K89: $78.45 | L89: $1,303.08 | M89: $10.33 | N89: $1,550.30 | O89: $2,853
A90: 62 | B90: S203 | C90: 2/S402 | D90: Gable Truss | E90: 53 | F90: 5% | G90: =E90+(E90*F90) -> 56 | H90: LF | I90: 0.107 | J90: 5.95 | K90: $78.45 | L90: $466.59 | M90: $9.98 | N90: $555.11 | O90: $1,022
A92: 63 | B92: S206 | C92: 2/A206 | D92: (2X8) Rafters At Trellis @ 12" O.C. | E92: =16*9 -> 144 | F92: 5% | G92: =E92+(E92*F92) -> 151 | H92: LF | I92: 0.023 | J92: =I92*G92 -> 3.40 | K92: $78.45 | L92: =K92*J92 -> $266.89 | M92: $2.10 | N92: =M92*G92 -> $317.52 | O92: =L92+N92 -> $584
D94: WOOD DECK/ SHEATHING
A95: 64 | B95: S202-203 | C95: S202-203 | D95: (1-1/8") T&G Plywood Floor Deck, Glued & Nailed w/ 10D @ 4" O.C. At Edge & 12" O.C. In Field | E95: 4330 | F95: 5% | G95: =E95+(E95*F95) -> 4547 | H95: SF | I95: 0.023 | J95: =I95*G95 -> 106.39 | K95: $78.45 | L95: =K95*J95 -> $8,346.15 | M95: $2.18 | N95: =M95*G95 -> $9,929.56 | O95: =L95+N95 -> $18,276
A96: 65 | B96: S202 | C96: 1/S401 | D96: 1X IPE Decking @ Makai Lanai | E96: 706 | F96: 5% | G96: =E96+(E96*F96) -> 741 | H96: SF | I96: 0.022 | J96: 16.23 | K96: $78.45 | L96: $1,273.59 | M96: $2.04 | N96: $1,515.22 | O96: $2,789
A97: 66 | B97: S203-205 | C97: See Note #1 on "S204" | D97: (5/8") Ext. Plywood Roof Deck, Glued & Nailed w/ 10D @ 4" O.C. At Edge & 12" O.C. In Field | E97: =2190+910 -> 3100 | F97: 5% | G97: =E97+(E97*F97) -> 3255 | H97: SF | I97: 0.020 | J97: 66.40 | K97: $78.45 | L97: $5,209.24 | M97: $1.90 | N97: $6,197.52 | O97: $11,407
A98: 67 | B98: S203-205 | C98: S401-410 | D98: (5/8") Ext. Plywood Roof Deck @ Eaves | E98: 4710 | F98: 5% | G98: =E98+(E98*F98) -> 4946 | H98: SF | I98: 0.020 | J98: 100.89 | K98: $78.45 | L98: $7,914.68 | M98: $1.90 | N98: $9,416.23 | O98: $17,331
A99: 68 | B99: A102-105 | C99: See Note #4 on "S202" | D99: (1/2") Ext. Plywood Sheathing @ Exterior Walls | E99: =640*10+78*12 -> 7336 | F99: 5% | G99: =E99+(E99*F99) -> 7703 | H99: SF | I99: 0.020 | J99: 150.20 | K99: $78.45 | L99: $11,783.55 | M99: $1.82 | N99: $14,019.10 | O99: $25,803
A100: 69 | B100: A102 | C100: 7/S407 | D100: (3/4") Ext. Plywood Sheathing @ Laundry/ Safe Room Ceiling | E100: 110 | F100: 5% | G100: =E100+(E100*F100) -> 116 | H100: SF | I100: 0.021 | J100: 2.41 | K100: $78.45 | L100: $188.92 | M100: $1.95 | N100: $224.76 | O100: $414
A101: 70 | B101: A102 | C101: 7/S407 | D101: (3/4") Ext. Plywood Sheathing @ Laundry/ Safe Room Walls | E101: =40*10 -> 400 | F101: 5% | G101: =E101+(E101*F101) -> 420 | H101: SF | I101: 0.021 | J101: 8.76 | K101: $78.45 | L101: $686.99 | M101: $1.95 | N101: $817.32 | O101: $1,504
A102: 71 | B102: A206 | C102: 9A/S409 | D102: (5/8") Ext. Plywood Over 2X Framing @ Trellis Columns | E102: =3.42*11.65 -> 40 | F102: 5% | G102: =E102+(E102*F102) -> 42 | H102: SF | I102: 0.021 | J102: 0.88 | K102: $78.45 | L102: $69.41 | M102: $1.97 | N102: $82.58 | O102: $152
D104: STAIRS
A105: 72 | B105: A501, A503 | C105: 3-4/A501 | D105: (3/4") Stair Deck | E105: =3.33*26.3+3.25*35 -> 201 | F105: 5% | G105: =E105+(E105*F105) -> 211 | H105: SF | I105: 0.021 | J105: =I105*G105 -> 4.41 | K105: $78.45 | L105: =K105*J105 -> $345.78 | M105: $1.95 | N105: =M105*G105 -> $411.38 | O105: =L105+N105 -> $757
A106: 73 | B106: A501, A503 | C106: 3-4/A501 | D106: Engineered Wood Flooring | E106: =3.33*26.3+3.25*35 -> 201 | F106: 5% | G106: 211 | H106: SF | I106: 0.098 | J106: 20.61 | K106: $78.45 | L106: $1,616.94 | M106: $5.85 | N106: $1,236.66 | O106: $2,854
A107: 74 | B107: A501, A503 | C107: 1-2/A501 | D107: (2X10) Stair Stringer | E107: =2*43 -> 86 | F107: 5% | G107: =E107+(E107*F107) -> 90 | H107: LF | I107: 0.024 | J107: 2.17 | K107: $78.45 | L107: $170.02 | M107: $2.24 | N107: $202.27 | O107: $372
A108: 75 | B108: A501, A503 | C108: 17/A503 | D108: (3'H) Hardwood Guardrail | E108: 28 | F108: 5% | G108: =E108+(E108*F108) -> 29 | H108: LF | I108: 0.488 | J108: 14.33 | K108: $78.45 | L108: $1,124.38 | M108: $45.50 | N108: $1,337.70 | O108: $2,462
A109: 76 | B109: A501, A503 | C109: 4/A501 | D109: (3'H) Hardwood Handrail | E109: 25 | F109: 5% | G109: =E109+(E109*F109) -> 26 | H109: LF | I109: 0.263 | J109: 6.89 | K109: $78.45 | L109: $540.57 | M109: $24.50 | N109: $643.13 | O109: $1,184
D111: TRIMS
A112: 77 | B112: A102-105 | C112: 1-2/A803 | D112: (4") Hardwood Base | E112: 750 | F112: 5% | G112: =E112+(E112*F112) -> 788 | H112: LF | I112: 0.019 | J112: =I112*G112 -> 14.77 | K112: $78.45 | L112: =K112*J112 -> $1,158.36 | M112: $1.75 | N112: =M112*G112 -> $1,378.13 | O112: =L112+N112 -> $2,536
A113: 78 | B113: A603 | C113: A603 | D113: (9-1/2"W X 3/4"Thk.) Hardwood Trim | E113: 45 | F113: 5% | G113: =E113+(E113*F113) -> 47 | H113: LF | I113: 0.023 | J113: 1.06 | K113: $78.45 | L113: $83.40 | M113: $2.10 | N113: $99.23 | O113: $183
A114: 79 | B114: A603 | C114: A603 | D114: (7-1/2"W X 3/4"Thk.) Hardwood Trim | E114: 48 | F114: 5% | G114: =E114+(E114*F114) -> 50 | H114: LF | I114: 0.021 | J114: 1.06 | K114: $78.45 | L114: $83.03 | M114: $1.96 | N114: $98.78 | O114: $182
A115: 80 | B115: A603 | C115: A603 | D115: (5-1/2"W X 3/4"Thk.) Hardwood Trim | E115: =10*3.7 -> 37 | F115: 5% | G115: =E115+(E115*F115) -> 39 | H115: LF | I115: 0.020 | J115: 0.76 | K115: $78.45 | L115: $59.43 | M115: $1.82 | N115: $70.71 | O115: $130
A116: 81 | B116: A601-602, A607, A609-611 | C116: A601-602, A607, A609-611 | D116: (3-1/2"W X 3/4"Thk.) Hardwood Trim | E116: 366 | F116: 5% | G116: =E116+(E116*F116) -> 384 | H116: LF | I116: 0.018 | J116: 6.92 | K116: $78.45 | L116: $542.67 | M116: $1.68 | N116: $645.62 | O116: $1,188
A117: 82 | B117: A601611 | C117: A601611 | D117: (2-1/2"W X 3/4"Thk.) Hardwood Trim | E117: =29*0.6+61*7.2+23*7.3+46+15*2.33+48*8.33+14*2.7+34*8.5+56*7.7+49*9.2+165+61*1.5 -> 2571 | F117: 5% | G117: =E117+(E117*F117) -> 2699 | H117: LF | I117: 0.017 | J117: 44.54 | K117: $78.45 | L117: $3,493.81 | M117: $1.54 | N117: $4,156.64 | O117: $7,650
A119: 83 | B119: A201-205 | C119: A201-205 | D119: (6") Exterior Siding Trim | E119: 435 | F119: 5% | G119: =E119+(E119*F119) -> 457 | H119: LF | I119: 0.022 | J119: =I119*G119 -> 9.93 | K119: $78.45 | L119: =K119*J119 -> $779.35 | M119: $2.03 | N119: =M119*G119 -> $927.20 | O119: =L119+N119 -> $1,707
A120: 84 | B120: A201-205 | C120: A201-205 | D120: (4") Exterior Siding Trim | E120: 240 | F120: 5% | G120: =E120+(E120*F120) -> 252 | H120: LF | I120: 0.020 | J120: 5.10 | K120: $78.45 | L120: $400.33 | M120: $1.89 | N120: $476.28 | O120: $877
A121: 85 | B121: A201-205 | C121: A201-205 | D121: (3") Exterior Siding Corner Trim (Assumed At Corners) | E121: 200 | F121: 5% | G121: =E121+(E121*F121) -> 210 | H121: LF | I121: 0.019 | J121: 4.06 | K121: $78.45 | L121: $318.78 | M121: $1.81 | N121: $379.26 | O121: $698
A122: 86 | B122: A206 | C122: A206 | D122: (3-1/2"W X 3/4"Thk.) Base Trim @ Trellis Columns | E122: 20 | F122: 5% | G122: 21 | H122: LF | I122: 0.018 | J122: 0.38 | K122: $78.45 | L122: $29.65 | M122: $1.68 | N122: $35.28 | O122: $65
A123: 87 | B123: A106 | C123: C/A704 | D123: (7-1/2"W X 1-1/4"Thk.) Hardwood Fascia @ Ceiling Soffits (Assumed At All Similar Soffits) | E123: 390 | F123: 5% | G123: =E123+(E123*F123) -> 410 | H123: LF | I123: 0.023 | J123: 9.58 | K123: $78.45 | L123: $751.73 | M123: $2.18 | N123: $894.35 | O123: $1,646
A124: 88 | B124: A106 | C124: C/A704 | D124: (3-1/2"W X 1-1/2"Thk.) Wood Trim | E124: =390+440 -> 830 | F124: 5% | G124: =E124+(E124*F124) -> 872 | H124: LF | I124: 0.020 | J124: 17.52 | K124: $78.45 | L124: $1,374.22 | M124: $1.88 | N124: $1,634.93 | O124: $3,009
A126: 89 | B126: A201-205 | C126: 1-2/A702 | D126: (3-1/2"W X 5/4"Thk.) Door Exterior Trim | E126: 190 | F126: 5% | G126: =E126+(E126*F126) -> 200 | H126: LF | I126: 0.019 | J126: =I126*G126 -> 3.77 | K126: $78.45 | L126: =K126*J126 -> $295.80 | M126: $1.76 | N126: =M126*G126 -> $351.92 | O126: =L126+N126 -> $648
A127: 90 | B127: A701 | C127: 1-2/A702 | D127: (3-1/2"W X 3/4"Thk.) Door Interior Trim | E127: =190+15*38+2*44+4*40 -> 1008 | F127: 5% | G127: 1058 | H127: LF | I127: 0.018 | J127: 19.05 | K127: $78.45 | L127: $1,494.57 | M127: $1.68 | N127: $1,778.11 | O127: $3,273
A129: 91 | B129: A201-205 | C129: 1-2/A706 | D129: (3-1/2"W X 5/4"Thk.) Window Exterior Trim | E129: 1025 | F129: 5% | G129: =E129+(E129*F129) -> 1076 | H129: LF | I129: 0.019 | J129: =I129*G129 -> 20.34 | K129: $78.45 | L129: =K129*J129 -> $1,595.76 | M129: $1.76 | N129: =M129*G129 -> $1,898.51 | O129: =L129+N129 -> $3,494
A130: 92 | B130: A201-205 | C130: 1-2/A706 | D130: (3-1/2"W X 5/4"Thk.) Window Interior Trim | E130: 1025 | F130: 5% | G130: 1076 | H130: LF | I130: 0.018 | J130: 19.37 | K130: $78.45 | L130: $1,519.77 | M130: $1.68 | N130: $1,808.10 | O130: $3,328
D132: FENCE
D134: Wood Fence at Site Wall:
A135: 93 | B135: A101, A206 | C135: 3,8/A206 | D135: (3/4") Ext. Plywood | E135: =2*2*19+2*5*6 -> 136 | F135: 5% | G135: =E135+(E135*F135) -> 143 | H135: SF | I135: 0.021 | J135: =I135*G135 -> 2.98 | K135: $78.45 | L135: =K135*J135 -> $233.58 | M135: $1.95 | N135: =M135*G135 -> $277.89 | O135: =L135+N135 -> $511
A136: 94 | B136: A101, A206 | C136: 3,8/A206 | D136: (2X4) Wood Blocking | E136: =2*25 -> 50 | F136: 5% | G136: =E136+(E136*F136) -> 53 | H136: LF | I136: 0.020 | J136: 1.02 | K136: $78.45 | L136: $80.31 | M136: $1.82 | N136: $95.55 | O136: $176
A137: 95 | B137: A101, A206 | C137: 3,8/A206 | D137: (2-1/2"X9-1/2"Thk.) Wood Bottom Cap | E137: 25 | F137: 5% | G137: =E137+(E137*F137) -> 26 | H137: LF | I137: 0.024 | J137: 0.64 | K137: $78.45 | L137: $50.20 | M137: $2.28 | N137: $59.72 | O137: $110
A138: 96 | B138: A101, A206 | C138: 3,8/A206 | D138: (2-1/2"X9-1/2"Thk.) Wood Top Cap | E138: 25 | F138: 5% | G138: =E138+(E138*F138) -> 26 | H138: LF | I138: 0.024 | J138: 0.64 | K138: $78.45 | L138: $50.20 | M138: $2.28 | N138: $59.72 | O138: $110
A139: 97 | B139: A101, A206 | C139: 3,8/A206 | D139: (1-1/4"X3-1/2") Wood Batten | E139: =2*4*5+2*10*2 -> 80 | F139: 5% | G139: =E139+(E139*F139) -> 84 | H139: LF | I139: 0.020 | J139: 1.65 | K139: $78.45 | L139: $129.49 | M139: $1.83 | N139: $154.06 | O139: $284
A140: =IF(H140<>"",1+MAX(A128:A139),"") -> 
A141: =IF(H141<>"",1+MAX(#REF!),"") ->  | D141: SUBTOTAL | K141: =IF(H141<>"",45.5,"") ->  | L141: =IF(H141<>"",I141*K141,"") ->  | P141: =SUM(O15:O140) -> $336,330
A142: SUB TOTAL | L142: =SUM(L6:L141) -> $153,174 | N142: =SUM(N6:N141) -> $183,157 | O142: =SUM(O6:O141) -> $336,330 | P142: =SUM(P6:P141) -> $336,330
A143: TAX | N143: 8.5% | P143: =P142*N143 -> $28,588
A144: PROFIT | N144: 10% | P144: =P142*N144 -> $33,633
A145: CONTIGENCIES | N145: 5% | P145: =P142*N145 -> $16,817
A146: TOTAL BASE BID | P146: =SUM(P142:P145) -> $415,368
A147: General Exclusions: Any kind of controlled inspection, contaminated material, architect and engineering fees, security, building charges, signage, sign off, protection of adjoining building (if any), any work not mentioned above.
A148: General Notes: The prices used are taken from RS Means online i.e. the standard pricing, the company is not responsible for any kind of variations in the prices. So it is preferred to review the prices.

Sheet UJ (hidden)
C2: PROJECT: | D2: 625 PARK AVE PHASE 1B
C3: ADDRESS: | D3: 625 PARK AVENUE,
D4: NEW YORK, NY-10065.
H6: DATE | I6: =TODAY() -> 2026-07-28
A7: ITEM # | B7: CSI SEC. | C7: DESCRIPTION | D7: QTY. | E7: WASTE | F7: QTY. W/ WASTE | G7: UNIT | H7: UNIT COST | I7: TRADE COST | L7: Single side areas
C8: SCOPE OF WORK | L8: Dry | M8: Wet
A9: 1 | B9: 09 29 | C9: 2 layered 5/8" thick USG fiberock brand panels for walls and ceilings. | D9: 11,635 | E9: 10% | F9: =D9*(1+E9) -> 12,799 | G9: sf | H9: $4.0 | I9: =H9*F9 -> $51,194 | J9: Type 1+Type 4+Type 6+ceiling | K9: Type 1 | L9: =2520-80 -> 2440 | M9: 280 | N9: =(2440*2+290*2+2345+3830) -> 11635
A10: 2 | B10: 09 29 | C10: 2 layerd 5/8" thick USG fiberock aqua tough brand panels for wall and ceilings in wet areas. | D10: 1,185 | E10: 10% | F10: =D10*(1+E10) -> 1,304 | G10: sf | H10: $4.5 | I10: =H10*F10 -> $5,866 | J10: Type 1+Type 4+Type 6+wet ceiling | K10: Type 2 | L10: =210-80 -> 130 | M10: 80 | N10: =(280*2+325+300) -> 1185
A11: 3 | B11: 09 29 | C11: 2 layered 2 HR rated 5/8" thick USG fiberock brand panels for walls. | D11: 260 | E11: 10% | F11: =D11*(1+E11) -> 286 | G11: sf | H11: $4.5 | I11: =H11*F11 -> $1,287 | J11: Type 2 | K11: Type 3 | N11: =130*2 -> 260
A12: 4 | B12: 09 29 | C12: 2 layered 2 HR rated 5/8" thick USG fiberock aqua tough brand panels for walls in wet areas. | D12: 160 | E12: 10% | F12: 176 | G12: sf | H12: $5.0 | I12: =H12*F12 -> $880 | J12: Type 2 | K12: Type 4 | L12: 290 | N12: =80*2 -> 160
A13: 5 | B13: 09 29 | C13: 3 layered 3 HR rated 5/8" thick USG fiberock brand panels for walls. | D13: 300 | E13: 10% | F13: 330 | G13: sf | H13: $4.0 | I13: =H13*F13 -> $1,320 | J13: Type 7 | K13: Type 5 | L13: 1200 | N13: =150*2 -> 300
A14: 6 | B14: 09 26 | C14: 3/32" thick gypsum veneer plaster skim coat. | D14: 14,740 | E14: 10% | F14: 16,214 | G14: sf | H14: $4.0 | I14: =H14*F14 -> $64,856 | J14: Type 1+Type 2+ Type 4+Type 5+Type 6 +Type 7 | K14: Type 6 | L14: =2670-325 -> 2345 | M14: 325 | N14: =SUM(N9:N13)+L13 -> 14740 | O14: =SUM(L9:M10)*2+L13+SUM(L14:M14)+L15*2+SUM(L17:M17)+L12*2 -> 14740 | P14: =N14-O14 -> 0
A15: 7 | B15: 09 22 16 | C15: 3-5/8" steel studs 20 GA @ 16" O.C. | D15: 5,750 | E15: 10% | F15: 6,325 | G15: sf | H15: $2.5 | I15: =H15*F15 -> $15,813 | J15: Type 1+Type 2+Type 6+Type 7 | K15: Type 7 | L15: 150 | N15: =SUM(L9:M10)+SUM(L14:M15) -> 5750
A16: 8 | B16: 10 22 16 | C16: 1-5/8" steel studs 20 GA @ 12" O.C. | D16: 290 | E16: 10% | F16: 319 | G16: sf | H16: $2.0 | I16: $638 | J16: Type 4 | K16: Type 8 | L16: 20
A17: 8 | B17: 09 22 26 | C17: Ceiling suspension system. | D17: 4,130 | E17: 10% | F17: 4,543 | G17: sf | H17: $3.0 | I17: =H17*F17 -> $13,629 | K17: Ceiling | L17: 3830 | M17: 300 | N17: =SUM(L17:M17) -> 4130
A18: 9 | B18: 07 21 16 | C18: Batt Insulation. | D18: 5,600 | E18: 5% | F18: 5,880 | G18: sf | H18: $2.0 | I18: =H18*F18 -> $11,760 | J18: Type 1+Type 2+ Type 6 | N18: =SUM(L9:M10)+SUM(L14:M14) -> 5600
A19: 10 | B19: 07 21 16 | C19: Batt Insulation type SAFB. | D19: 150 | E19: 10% | F19: 165 | G19: sf | H19: $2.2 | I19: =H19*F19 -> $363 | J19: Type 7 | N19: 150
A21: SUB TOTAL | I21: =SUM(I9:I19) -> $167,605
A22: INSURANCE (3%) | I22: =(3/100)*I21 -> $5,028
A23: TOTAL BASE BID | I23: =SUM(I21:I22) -> $172,633
C25: Exclusions
B26: 1 | C26: Mouldings
B27: 2 | C27: Patch work
B28: 3 | C28: Fixtures
B29: 4 | C29: Electrical work
B30: 5 | C30: Stone and/or tile work
B31: 6 | C31: Wall type 8 [no details on provided on the drawing]

Sheet DETAIL (2) (hidden)
B2: PROJECT: | C2: 625 PARK AVE PHASE 1B
B3: ADDRESS: | C3: 625 PARK AVENUE
C4: NEW YORK, NY 10065
E6: DATE | F6: =TODAY() -> 2026-07-28
A7: ITEM # | B7: DESCRIPTION | C7: UNIT COST | D7: QTY. | E7: UNIT | F7: TRADE COST
B8: SCOPE OF WORK
A9: 1 | B9: 5/8" 2 layered USG fiberock brand panels. | D9: =((2358+277+2077)-644)+3830 -> 7,898 | E9: sf | F9: =C9*D9 -> 0 | G9: Type 1+Type 4+Type 6+ceiling
A10: 2 | B10: 5/8" 2 layered USG fiberock aqua tough brand panels. (Wet area). | D10: =644+292 -> 936 | E10: sf | F10: =C10*D10 -> 0 | G10: Type 1+Type 4+Type 6+wet ceiling | I10: Height 9'6"
A11: 3 | B11: 2 HR rated 5/8" 2 layered USG fiberock brand panels. | D11: =206-78 -> 128 | E11: sf | F11: 0 | G11: Type 2 | I11: For Doors & Cabinets 1'3"
A12: 4 | B12: 2 HR rated 5/8" 2 layered USG fiberock aqua tough brand panels. (Wet area). | D12: 78 | E12: sf | F12: 0 | G12: Type 2
A13: 5 | B13: 3 HR rated 5/8" 3 layered USG fiberock brand panels. | D13: 148 | E13: sf | F13: 0 | G13: Type 7
A14: 6 | B14: 3/32" thick gypsum veneer plaster skim coat. | D14: =2538+206+277+1343+2077+148 -> 6,589 | E14: sf | F14: 0 | G14: Type 1+Type 2+ Type 4+Type 5+Type 6 +Type 7
A15: 7 | B15: 3 5/8" steel studs 20 GA @ 16" O.C. | D15: 4,968 | E15: sf | F15: 0 | G15: Type 1+Type 2+Type 6+Type 7
A16: 8 | B16: 1 5/8" steel studs 20 GA @ 12" O.C. | D16: 277 | E16: sf | F16: 0 | G16: Type 4
A17: 9 | B17: Batt sound Insulation. | D17: =2538+206+2077 -> 4,821 | E17: sf | F17: 0 | G17: Type 1+Type 2+ Type 6
A18: 10 | B18: Batt sound Insulation type SAFB. | D18: 148 | E18: sf | F18: 0 | G18: Type 7 | H18: QTY Details
H19: Type 1 | I19: 2538 | J19: 2520
A20: TOTAL | F20: =SUM(F9:F18) -> 0 | H20: Type 2 | I20: 205 | J20: 206
B21: Exclusions | H21: Type 3 | I21: N/A
A22: 1 | B22: Mouldings | H22: Type 4 | I22: 277 | J22: 290
A23: 2 | B23: Patch work | H23: Type 5 | I23: 1342 | J23: 1200
A24: 3 | B24: Fixtures | H24: Type 6 | I24: 2077 | J24: 2670
A25: 4 | B25: Electrical work | H25: Type 7 | I25: 148 | J25: 150
A26: 5 | B26: Stone and/or tile work | H26: Type 8 | I26: 22 | J26: 20 | K26: No details given
A27: 6 | H27: Ceiling | I27: 3830
H28: Wet Ceiling | I28: 292
B31: DETAILS
B32: Type 1- Interior Partition | G32: Type 2- 2HR rated Interior Partition | H32: Type
B33: 2 layers 5/8' USG fiberock brand panels (Fiberock aqua tough brand at all wet areas) Glue second layer, finished with 3-32" thick gypsum veneer plaster skim coat. 3 5/8" Stl studs 20 GA @16" O.C with Batt insulation. 2 layers 5/8" USG fiberock brand panels(Fiberock aqua tough brand at all wet areas finished 3-32" thick gypsum veneer plaster skim coat | G33: 2 layers 5/8' USG fiberock brand panels (Fiberock aqua tough brand at all wet areas) Glue second layer, finished with 3-32" thick gypsum veneer plaster skim coat. 3 5/8" Stl studs 20 GA @16" O.C with Batt insulation. 2 layers 5/8" USG fiberock brand panels(Fiberock aqua tough brand at all wet areas finished 3-32" thick gypsum veneer plaster skim coat
B35: TYPE 3 Interior partition at chase | G35: TYPE 4 Pocket door partition
B36: 2 layer 5/8" USG fiberock brand panels ( Fiberock aqua tough brand at all wet areas ) Glue second layer fill batt insulation, finished with 3/32" thick gypsum veneer plaster skim coat. 20 Ga 2-1/2" mtl studs @ 16 O.C. with batt insulation. Pipe chase space. 2 layers 5/8" USG fiberock brand panels (Fiberock aqua tough brand at all wet areas finished with 3/32" thick gypsum veneer plaster skim coat. | G36: 2 Layers 5/8" USG fiberock brand panels (Fiberock Aqua tough brand at all wet areas) Glue second layer, Finished with 3/32" thick gypsum veneer plaster skim coat. 1 5/8" 20 Ga stl studs @12 O.C. 2 layer 5/8" USG fiberock brand panels (fiberock aqua tough brand at wet areas) finished with 3/32" thick gypsum veneer plaster skim coat.
B38: TYPE 5 Existing wall skim coat | G38: TYPE 6 EXISTING WALL- Furring
B39: Apply 3/32" Thick gypsum veneer skim coat. Fill and smooth all imperfections | G39: 3 5/8" 20 Ga stl studs @ 16 O.C. 2 layers 5/8" USG fiberock brand panels dimensions from exterior wall to be varified with architect. Fill with Batt insulation, Finished with 3/32" Thick Gypsum veneer plaster skim coat
B40: TYPE 7 Interior Partition- 3 Hr rated
B41: 3 layer 5/8" USG fiberock brand panels, glue third layer finished with 3/32" thick gypsum veneer plaster skim coat. 3 5/8" stl studs 20 GA @16"O.C. Batt insulation Type SAFB. 3 layer 5/8" USG fiberock brand panels, glue third layer finished with 3-32" thick gypsum veneer plaster skim coat
